[Event "Slovakia Open Piestany-A 2022"]
[Site "Piestany"]
[Date "2022.07.17"]
[Round "8.27"]
[White "Zdrazil, Patrik"]
[Black "Sosovickova, Jana"]
[Result "0-1"]
[ECO "C52"]
[WhiteElo "2103"]
[BlackElo "1958"]
[Annotator "TA"]
[PlyCount "42"]
[EventDate "2022.07.12"]
[EventType "swiss"]
[EventCountry "SVK"]
[SourceTitle "playchess.com"]
[Source "ChessBase"]
[SourceQuality "1"]
[TimeControl "40/5400+30:1800+30"]

{[%evp 11,42,-25,-14,-16,-8,-8,74,53,70,62,63,65,85,-19,0,-25,-9,-19,0,0,0,-91,-7,0,9,-129,-138,-132,-151,-237,-233,-29993,-29990]} 1. e4 {[%emt 0:00:36]} e5 {[%emt 0:00:56][%cal Be7e5,Be5d4][%mdl 32]} 2. Nf3 {[%emt 0:00:22]} Nc6 {[%emt 0:00:03]} 3. Bc4 {[%emt 0:00:15]} Bc5 {[%emt 0:00:55]} 4. b4 {[%emt 0:00:09]} Bxb4 {[%emt 0:00:03]} 5. c3 {[%emt 0:00:05]} Ba5 {[%emt 0:00:07]} 6. d4 {[%emt 0:00:07]} exd4 {[%emt 0:05:42] 6...d6 might become the main line.} 7. Qb3 {[%emt 0:00:09] C52: Evans Gambit Accepted: 5 c3 Ba5.} Qe7 {[%emt 0:05:07]} 8. O-O {[%emt 0:00:07]} Nh6 {[%emt 0:10:27]} (8... Bb6 $11) 9. Bg5 {[%emt 0:24:06] White is better.} (9. cxd4 $5 {[%cal Rb1c3]} O-O 10. Nc3 $14) 9... f6 {[%emt 0:02:29]} 10. Bxh6 {[%emt 0:08:11]} gxh6 {[%emt 0:00:09]} 11. cxd4 {[%emt 0:14:56] [#]} Bb6 $146 {[%emt 0:10:09]} ({Much weaker is} 11... Qxe4 12. Nc3 Qg4 13. Rfe1+ Kd8 14. Re3 $11 (14. Re4 Qg7 $11)) ({Predecessor:} 11... d6 12. Nc3 Bh3 13. gxh3 O-O-O 14. Bd5 Bxc3 15. Qxc3 Qd7 16. Rab1 Qxh3 17. Qb3 Nxd4 18. Nxd4 Qg4+ 19. Kh1 Rdg8 20. Be6+ {1-0 (20) Walsh,T-Evans,K IECC email 1997}) 12. Qd1 {[%emt 0:00:16]} ({White should try} 12. Nc3 $16) 12... d6 $36 {[%emt 0:01:49][%mdl 2048] Black fights for an advantage.} (12... Qxe4 $2 13. Re1 Qxe1+ 14. Qxe1+ Kf8 15. Qe4 $18) 13. a4 {[%emt 0:16:17][%cal Oa4a5]} Bg4 {[%emt 0:05:24][%cal Oc6d4]} (13... Qxe4 $2 14. Re1 Qxe1+ 15. Qxe1+ Kd8 16. Qd2 $18) 14. Bb5 $1 {[%emt 0:04:26] [#] Threatens to win with d5.} a6 {[%emt 0:05:15]} (14... Qxe4 $2 15. Re1 Bxf3 16. gxf3 Qxe1+ 17. Qxe1+ Kf8 18. Bxc6 Rg8+ 19. Kf1 bxc6 20. Qc3 $18) 15. Bxc6+ {[%emt 0:00:09]} bxc6 {[%emt 0:00:03]} 16. a5 {[%emt 0:00:06]} (16. Ra3 $11) 16... Ba7 {[%emt 0:01:52]} ({Black should play} 16... Bxf3 $17 17. Qxf3 Bxd4) 17. Qc2 {[%emt 0:03:56]} O-O {[%emt 0:09:01]} 18. Qxc6 {[%emt 0:00:45]} (18. Nbd2 $11) 18... Bxf3 $17 {[%emt 0:01:48]} 19. gxf3 {[%emt 0:00:06]} Bxd4 {[%emt 0:01:04]} ({Stronger than} 19... Qg7+ 20. Kh1 Kh8 21. Rg1 $11) 20. Ra4 {[%emt 0:03:27]} (20. Nc3 $17 {is a better defense.} Kh8 21. Rad1) 20... Kh8 $19 {[%emt 0:02:35]} 21. Qxc7 $2 {[%emt 0:01:45] [#]} (21. Rxd4 $2 {gets mated.} Qg7+ 22. Kh1 Rg8 23. h4 Qg2#) (21. Rc1 $19 Bc5 22. Rac4) 21... Qxc7 {[%emt 0:00:10] Weighted Error Value: White=0.75/Black=0.22 (precise)} 0-1

[Event "Slovakia Open Piestany-A 2022"]
[Site "Piestany"]
[Date "2022.07.17"]
[Round "8.28"]
[White "Compel, Daniel"]
[Black "Saravanan Durga"]
[Result "1/2-1/2"]
[ECO "A13"]
[WhiteElo "2098"]
[BlackElo "1908"]
[Annotator "TA"]
[PlyCount "86"]
[EventDate "2022.07.12"]
[EventType "swiss"]
[EventCountry "SVK"]
[SourceTitle "playchess.com"]
[Source "ChessBase"]
[SourceQuality "1"]
[TimeControl "40/5400+30:1800+30"]

{[%evp 9,86,21,19,0,0,0,10,13,22,0,0,-31,0,0,-3,-14,-22,-24,-18,-34,36,-43,-29,-38,-34,-52,-53,-50,0,-93,-86,-89,-69,-153,-81,-130,-84,-116,-92,-92,-97,-94,-89,-93,-75,-74,-37,-37,-35,-79,-67,-83,0,-108,-113,-128,-125,-122,0,0,0,0,0,0,39,28,41,0,0,0,38,0,0,0,35,0,0,0,19]} 1. c4 {[%emt 0:05:50]} e6 {[%emt 0:00:06]} 2. Nf3 {[%emt 0:00:05]} d5 {[%emt 0:00:22]} 3. g3 {[%emt 0:00:58]} Nf6 {[%emt 0:00:18]} 4. Bg2 {[%emt 0:00:08]} d4 {[%emt 0:01:04]} 5. O-O {[%emt 0:00:33]} c5 {[%emt 0:01:00]} 6. b4 {[%emt 0:00:12] A13: English Opening: 1...e6.} cxb4 {[%emt 0:02:39]} 7. a3 {[%emt 0:00:21]} bxa3 {[%emt 0:03:07]} 8. Nxa3 {[%emt 0:00:10]} Nc6 {[%emt 0:00:52]} 9. d3 {[%emt 0:00:33][%mdl 1024] White has compensation.} Bc5 {[%emt 0:03:20]} 10. Nd2 {[%emt 0:05:26] [#]} a6 $146 {[%emt 0:27:11]} ({Predecessor:} 10... O-O 11. Nb3 Bb4 12. Bd2 Bxd2 13. Qxd2 e5 14. Nc2 Bf5 15. Na5 Qc7 16. Nxc6 bxc6 {½-½ (50) Srebrnic,V (2087)-Zelcic,R (2512) Portoroz 2016}) 11. Nb3 {[%emt 0:00:20]} Ba7 {[%emt 0:00:12]} 12. Bd2 {[%emt 0:02:03]} O-O {[%emt 0:03:00]} 13. Qc2 {[%emt 0:00:43]} e5 {[%emt 0:07:30]} 14. Rfb1 {[%emt 0:08:00]} Qe7 {[%emt 0:12:55] [#]} (14... Be6 $15) 15. Na5 {[%emt 0:02:23]} (15. Nb5 $1 $14) 15... Nxa5 $15 {[%emt 0:00:54]} 16. Bxa5 {[%emt 0:00:09]} Bc5 {[%emt 0:02:42]} 17. Qa2 {[%emt 0:02:05]} Rb8 $36 {[%emt 0:05:23][%cal Ob7b5][%mdl 2048] Black is more active.} 18. Nc2 {[%emt 0:01:38]} Bf5 {[%emt 0:01:46]} ({Black should try} 18... Qd6 $15) 19. Nb4 {[%emt 0:05:14]} (19. Bb6 $11 {remains equal.}) 19... Qd6 $17 {[%emt 0:07:26]} 20. Qb3 {[%emt 0:04:25]} h6 {[%emt 0:11:32]} 21. Ra2 {[%emt 0:01:06]} (21. Nd5 $15 Nxd5 22. Bxd5) 21... Rfe8 {[%emt 0:01:40]} ({Better is} 21... b5 {Hoping for ...bxc4.} 22. Raa1 bxc4 23. Qxc4 Be6 24. Qxa6 Rxb4 25. Bxb4 Bxb4 26. Qxd6 Bxd6) 22. Rab2 {[%emt 0:01:36]} (22. Nd5 $142 Nxd5 23. Bxd5) 22... Bd7 {[%emt 0:01:43]} (22... e4 $142 23. Nd5 Nxd5 24. cxd5 exd3 25. exd3 b6) 23. Qc2 {[%emt 0:01:10]} b5 {[%emt 0:02:51]} 24. Nd5 {[%emt 0:06:16]} Nxd5 {[%emt 0:00:13]} 25. Bxd5 {[%emt 0:00:06]} Rec8 {[%emt 0:00:51]} 26. Qb3 {[%emt 0:00:35]} Kf8 {[%emt 0:02:11] Threatens to win with ...Ba3.} 27. Qa2 {[%emt 0:01:31]} Be6 {[%emt 0:00:25]} 28. Bxe6 $1 {[%emt 0:01:50]} Qxe6 {[%emt 0:00:03]} 29. Qa1 {[%emt 0:01:47][%cal Rc4b5]} Qc6 {[%emt 0:00:15]} 30. Bd2 {[%emt 0:01:06]} Ke7 {[%emt 0:00:53]} ({Black should play} 30... Kg8 $17) 31. Ra2 {[%emt 0:00:11]} (31. cxb5 $11 axb5 32. Rc1) 31... bxc4 {[%emt 0:00:30]} 32. Rxb8 {[%emt 0:00:46]} Rxb8 {[%emt 0:00:01]} 33. Rxa6 {[%emt 0:00:44] [#]} Rb1+ {[%emt 0:00:24]} 34. Qxb1 $11 {[%emt 0:00:01]} Qxa6 {[%emt 0:00:04]} 35. dxc4 {[%emt 0:00:06]} Qxc4 {[%emt 0:01:32][%mdl 4096] Endgame KQB-KQB} 36. Qb7+ {[%emt 0:00:05]} Ke6 {[%emt 0:00:59]} (36... Kd6 $5 {[%cal Rc4d5]}) 37. Qc6+ {[%emt 0:00:39]} Ke7 {[%emt 0:00:22]} 38. Qc7+ {[%emt 0:00:52]} Kf6 {[%emt 0:00:13][%cal Oc4e2]} 39. Qc6+ {[%emt 0:00:17]} Ke7 {[%emt 0:00:46]} 40. Qc7+ {[%emt 0:00:05]} Ke6 {[%emt 0:00:37][%cal Oc4e2]} 41. Qc6+ {[%emt 0:30:07]} Ke7 {[%emt 0:17:31]} 42. Qc7+ {[%emt 0:00:00]} Kf6 {[%emt 0:01:47][%cal Oc4e2]} 43. Qc6+ {[%emt 0:00:00]} Ke7 {[%emt 0:00:43] Weighted Error Value: White=0.27 (precise) /Black=0.18 (very precise)} 1/2-1/2

[Event "Slovakia Open Piestany-A 2022"]
[Site "Piestany"]
[Date "2022.07.17"]
[Round "8.29"]
[White "Pennica, Andrea"]
[Black "Paluska, Karol"]
[Result "1-0"]
[ECO "A00"]
[WhiteElo "1986"]
[BlackElo "1957"]
[Annotator "TA"]
[PlyCount "67"]
[EventDate "2022.07.12"]
[EventType "swiss"]
[EventCountry "SVK"]
[SourceTitle "playchess.com"]
[Source "ChessBase"]
[SourceQuality "1"]
[TimeControl "40/5400+30:1800+30"]

{[%evp 9,67,-22,-26,-16,-19,-24,13,15,27,10,49,22,75,73,75,62,67,37,74,52,71,69,123,121,116,25,149,137,204,129,129,129,129,131,143,139,149,150,156,148,131,108,457,474,477,466,460,440,467,454,552,552,2287,2291,5293,5293,12830,12826,5093,2163]} 1. c3 {[%emt 0:01:40][%cal Bc2c3,Bc3c4][%mdl 32]} d5 {[%emt 0:03:33]} 2. c4 {[%emt 0:00:11]} c6 {[%emt 0:01:52]} 3. Nf3 {[%emt 0:01:28]} Nf6 {[%emt 0:03:16]} 4. g3 {[%emt 0:01:08]} g6 {[%emt 0:02:30]} 5. b3 {[%emt 0:01:23]} Bg7 {[%emt 0:01:03] With the idea ...Ne4.} 6. Bb2 {[%emt 0:00:14] [#] A00: Irregular Openings.} O-O $146 {[%emt 0:01:45]} ({Predecessor:} 6... Qb6 7. Qc2 Na6 8. Bg2 Nb4 9. Qc1 Bf5 10. Na3 O-O 11. O-O Rac8 12. d3 Rfe8 {0-1 (50) Langner,D-Wanderley,R (1951) Campinas 2011}) 7. Bg2 {[%emt 0:00:06]} Bf5 {[%emt 0:01:47]} 8. O-O {[%emt 0:01:04] The position is equal.} Re8 {[%emt 0:06:02]} 9. d3 {[%emt 0:02:09]} Nbd7 {[%emt 0:00:37]} 10. Nd4 {[%emt 0:02:51]} e5 {[%emt 0:01:47]} (10... Bg4 $11) 11. Nxf5 $16 {[%emt 0:00:20]} gxf5 {[%emt 0:00:06]} 12. cxd5 {[%emt 0:05:27]} (12. Na3 {is interesting.} e4 13. Bh3 e3 14. Qc1) 12... cxd5 {[%emt 0:00:27]} 13. Nc3 {[%emt 0:00:26]} Nf8 {[%emt 0:01:09]} 14. Rc1 {[%emt 0:01:13]} Ne6 {[%emt 0:14:42]} 15. e3 {[%emt 0:11:46]} f4 {[%emt 0:06:12]} (15... Rb8 $14) 16. gxf4 {[%emt 0:20:12]} exf4 {[%emt 0:00:30]} 17. Qf3 {[%emt 0:00:58]} ({White should try} 17. Nb5 $16) 17... fxe3 {[%emt 0:02:11]} (17... d4 $1 $11 18. Ne2 dxe3) 18. fxe3 {[%emt 0:00:14] Threatens to win with Nb5.} Qe7 {[%emt 0:06:27]} (18... Rc8 $16 19. d4 (19. Nxd5 Qxd5 20. Rxc8 Rxc8 $16) 19... Nc7) 19. Nxd5 {[%emt 0:23:08]} Nxd5 {[%emt 0:00:17]} 20. Bxg7 {[%emt 0:01:04]} Nxg7 {[%emt 0:00:05]} 21. Qxd5 {[%emt 0:00:03]} Qxe3+ {[%emt 0:00:10]} 22. Kh1 {[%emt 0:00:09]} Re7 {[%emt 0:01:21]} 23. Be4 {[%emt 0:00:38] aiming for Rce1.} Rae8 {[%emt 0:02:49] [#]} 24. Rce1 $1 {[%emt 0:04:12] White is more active.} Qb6 {[%emt 0:05:05]} 25. Qg5 $40 {[%emt 0:02:47][%mdl 128] White goes for the king.} Re5 $2 {[%emt 0:01:26][%mdl 8192] [#] Loses the game.} (25... h6 $16 {is more resistant.} 26. Qg2 Re5) 26. Bxh7+ $1 $18 {[%emt 0:00:25][%mdl 512] White is clearly winning.} Kxh7 {[%emt 0:00:26]} 27. Rxe5 {[%emt 0:00:08]} Qc6+ {[%emt 0:00:23]} 28. Kg1 {[%emt 0:00:52]} Qb6+ {[%emt 0:01:08]} 29. Rf2 {[%emt 0:00:16] Black must now prevent Rxe8.} Rxe5 {[%emt 0:01:30]} 30. Qxe5 {[%emt 0:00:11]} Qg6+ {[%emt 0:00:07]} 31. Rg2 {[%emt 0:00:27]} Qb6+ {[%emt 0:01:01]} 32. Kf1 {[%emt 0:00:36][%csl Gg2][%cal Re5g7]} Qh6 {[%emt 0:00:12] [#]} 33. Rxg7+ $1 {[%emt 0:00:19]} Qxg7 {[%emt 0:00:16]} 34. Qxg7+ {[%emt 0:00:07] Weighted Error Value: White=0.17 (very precise) /Black=0.60} 1-0

[Event "Slovakia Open Piestany-A 2022"]
[Site "Piestany"]
[Date "2022.07.17"]
[Round "8.30"]
[White "Tripodi, Enzo"]
[Black "Mizicka, Matus"]
[Result "0-1"]
[ECO "B13"]
[WhiteElo "2141"]
[BlackElo "1915"]
[Annotator "TA"]
[PlyCount "100"]
[EventDate "2022.07.12"]
[EventType "swiss"]
[EventCountry "SVK"]
[SourceTitle "playchess.com"]
[Source "ChessBase"]
[SourceQuality "1"]
[TimeControl "40/5400+30:1800+30"]

{[%evp 17,100,19,36,48,54,51,60,61,94,86,95,80,86,54,48,56,62,36,31,41,79,76,177,136,130,141,154,127,133,137,137,140,145,56,77,0,33,0,35,40,184,110,160,130,156,89,115,79,85,7,8,-59,13,-82,-69,-64,-59,-122,0,0,22,-243,-222,-229,-192,-341,-340,-728,-718,-704,-705,-666,-671,-614,-445,-2075,-810,-29970,-29971,-29995,-29978,-29975,-29976,-29985,-29986]} 1. e4 {[%emt 0:00:51]} c6 {[%emt 0:18:40]} 2. d4 {[%emt 0:00:36]} d5 {[%emt 0:00:06]} 3. exd5 {[%emt 0:00:59]} cxd5 {[%emt 0:00:07]} 4. Bd3 {[%emt 0:00:04]} Nc6 {[%emt 0:01:04]} 5. c3 {[%emt 0:00:04]} Nf6 {[%emt 0:00:32]} 6. Bf4 {[%emt 0:00:10]} g6 {[%emt 0:01:00]} 7. Nd2 {[%emt 0:00:04]} Bg7 {[%emt 0:00:14]} 8. h3 {[%emt 0:00:05]} O-O {[%emt 0:00:25]} 9. Ngf3 {[%emt 0:00:15]} a6 {[%emt 0:00:54]} 10. O-O {[%emt 0:02:04] B13: Caro-Kann: Exchange Variation and Panov-Botvinnik Attack.} b5 {[%emt 0:00:31]} 11. a3 {[%emt 0:00:05]} Qb6 {[%emt 0:00:59]} 12. Re1 {[%emt 0:00:50] [#] White is slightly better.} Bd7 $146 {[%emt 0:10:19]} ({Predecessor:} 12... Re8 13. Nb3 Nd7 14. Ne5 Ndxe5 15. dxe5 d4 16. cxd4 Be6 17. Be3 Bxb3 18. Qxb3 Nxd4 19. Bxd4 Qxd4 {½-½ (87) Steves,D (2009)-Fischer,T (2213) Germany 2009}) 13. Ne5 {[%emt 0:01:27]} Nxe5 {[%emt 0:00:23]} 14. dxe5 {[%emt 0:00:45]} Ne8 {[%emt 0:00:16]} 15. Nf3 {[%emt 0:01:01]} Nc7 {[%emt 0:00:21]} 16. Be3 {[%emt 0:03:12]} Qb7 {[%emt 0:00:41]} 17. Bc5 {[%emt 0:01:43]} Rfe8 {[%emt 0:00:20]} 18. Ng5 {[%emt 0:01:40]} Be6 {[%emt 0:04:14]} 19. f4 {[%emt 0:04:37]} h6 {[%emt 0:03:59]} (19... Bh6 $16) 20. Nxe6 {[%emt 0:01:55]} Nxe6 {[%emt 0:00:05]} 21. Be3 {[%emt 0:00:04] This bishop pair is nice.} Nf8 {[%emt 0:11:59]} 22. f5 {[%emt 0:06:11]} Bxe5 {[%emt 0:04:23]} 23. Bxh6 {[%emt 0:00:20]} Bg7 {[%emt 0:00:05]} 24. Bxg7 {[%emt 0:00:07]} Kxg7 {[%emt 0:00:36]} 25. Qg4 {[%emt 0:01:07]} (25. fxg6 $16 Nxg6 26. Bxg6 Qb6+ 27. Kh1 Qxg6 28. Qd4+ (28. Qxd5 Rad8 $16) 28... Qf6 29. Re5 (29. Qxd5 Rad8 $16)) 25... e5 {[%emt 0:01:43]} 26. fxe6 {[%emt 0:01:24]} (26. Rf1 $16) 26... Nxe6 {[%emt 0:00:21]} 27. Kh1 {[%emt 0:00:41][%cal Od3g6] Hoping for Bxg6!} Qe7 {[%emt 0:01:49]} 28. Re5 {[%emt 0:00:46][%cal Od3g6]} Qf6 {[%emt 0:03:25]} (28... Qd6 $14 29. Rf5 Kg8) 29. Rf5 $1 $18 {[%emt 0:01:23]} (29. Rxd5 $6 Rad8 30. Be4 Ng5 31. Rxg5 Rxe4 32. Qxe4 Qxg5 $14) 29... Qe7 {[%emt 0:09:07] [#]} 30. Raf1 $1 {[%emt 0:00:10]} ({Resist} 30. Rxd5 $6 Rad8 31. Rxd8 Rxd8 $14) 30... Rf8 {[%emt 0:01:19]} 31. Rxd5 {[%emt 0:06:55]} (31. R1f3 $142) 31... Rad8 {[%emt 0:02:53]} 32. Be4 {[%emt 0:03:46]} Nc5 {[%emt 0:04:28]} 33. Rxd8 {[%emt 0:01:43]} (33. Bf3 $16 {aiming for Qd4+.} Rxd5 34. Bxd5) 33... Rxd8 $11 {[%emt 0:00:12]} 34. Bf3 {[%emt 0:02:30]} ({Better is} 34. Bb1 $11) 34... Rd2 {[%emt 0:02:53]} ({Black should try} 34... Nd3 $15 35. Be4 Nxb2) 35. Qb4 {[%emt 0:03:41]} (35. b4 $11 {keeps the balance.} Ne6 36. Qg3) 35... Qe5 $17 {[%emt 0:01:56][%mdl 1024] Black has strong compensation. Black is more active.} 36. Qh4 {[%emt 0:03:09]} Nd3 {[%emt 0:00:46] Prevents Re1.} 37. b4 {[%emt 0:01:48]} (37. b3 $1 $15) 37... Nf2+ {[%emt 0:10:09]} 38. Kg1 $11 {[%emt 0:00:27]} Qe3 {[%emt 0:00:22] Dancing on a razor blade.} 39. Rxf2 $2 {[%emt 0:00:42][%mdl 8192] [#]} (39. Kh2 $1 $11) 39... Qe1+ $1 $40 {[%emt 0:00:08][%mdl 128] Black attacks with force.} 40. Kh2 {[%emt 0:00:01][%cal Of3e2] Be2! is the strong threat.} Qxf2 {[%emt 0:00:13][%mdl 4096] Endgame KQR-KQB} 41. Qf4 {[%emt 0:31:28]} (41. Qxf2 {is the only way for White.} Rxf2 42. Bb7) 41... Qe1 {[%emt 0:33:02]} (41... Rd1 $2 42. Qe5+ Kh6 43. Bxd1 $18) 42. c4 $2 {[%emt 0:00:44]} (42. Be4 Rd7 43. Bc6) 42... bxc4 {[%emt 0:01:11]} 43. Qxc4 {[%emt 0:00:19]} Qe5+ {[%emt 0:00:32]} 44. Kg1 {[%emt 0:00:04]} Qe3+ {[%emt 0:02:31]} 45. Kh1 {[%emt 0:00:20]} Rb2 {[%emt 0:00:00] ( -> ...Qe1+)} 46. Be4 {[%emt 0:00:00]} (46. h4 $142) 46... Re2 {[%emt 0:00:00]} (46... Rb3 $142 47. Qd5 Qe1+ 48. Kh2 Qg3+ 49. Kh1 Re3 50. Qd4+ Kh7) 47. Bd3 {[%emt 0:00:00]} Re1+ {[%emt 0:00:00] Black mates.} 48. Kh2 {[%emt 0:00:00]} Qe5+ {[%emt 0:00:00]} 49. g3 {[%emt 0:00:00]} Qb2+ {[%emt 0:00:00]} 50. Bc2 {[%emt 0:00:00]} Rc1 {[%emt 0:00:00] Never resign too early!  Weighted Error Value: White=0.82/Black=0.32} 0-1

[Event "Slovakia Open Piestany-A 2022"]
[Site "Piestany"]
[Date "2022.07.18"]
[Round "9.1"]
[White "Donchenko, Alexander"]
[Black "Kozak, Antoni"]
[Result "1/2-1/2"]
[ECO "A17"]
[WhiteElo "2640"]
[BlackElo "2475"]
[Annotator "TA"]
[PlyCount "113"]
[EventDate "2022.07.12"]
[EventType "swiss"]
[EventCountry "SVK"]
[SourceTitle "playchess.com"]
[Source "ChessBase"]
[SourceQuality "1"]
[TimeControl "40/5400+30:1800+30"]

{[%evp 9,113,17,20,-21,0,0,0,0,8,-16,0,0,0,0,0,0,7,0,5,-31,23,-20,-30,-22,-25,-21,-29,-25,-27,-25,-25,-31,-26,-74,-78,-65,-73,-97,0,0,0,0,0,0,0,0,9,13,8,8,12,0,0,0,0,0,0,0,0,0,0,0,0,0,0,0,0,0,0,0,0,0,0,0,0,0,0,0,0,0,0,0,0,0,0,0,0,0,0,0,0,0,0,0,0,0,0,0,0,0,0,0,0,0,0,0]} 1. Nf3 {[%emt 0:00:02]} c5 {[%emt 0:02:05]} 2. c4 {[%emt 0:00:17]} Nf6 {[%emt 0:00:05]} 3. Nc3 {[%emt 0:02:07]} d5 {[%emt 0:00:42]} 4. cxd5 {[%emt 0:01:04]} Nxd5 {[%emt 0:00:03]} 5. e3 {[%emt 0:06:33]} e6 {[%emt 0:00:51]} 6. Qa4+ {[%emt 0:09:49] [#] A17: English Opening: 1...Nf6 with ...Bb4.} Bd7 $146 {[%emt 0:07:17]} ({Predecessor:} 6... Nc6 7. Ne5 Bd7 8. Nxd7 Qxd7 9. Be2 Ndb4 10. O-O Rd8 11. a3 Nd3 12. b4 cxb4 13. axb4 Bxb4 {0-1 (39) Harff,M (2351)-Baron,T (2528) Karlsruhe 2017}) 7. Qb3 {[%emt 0:00:47][%csl LRb7,LRd5]} Nxc3 {[%emt 0:01:41]} 8. bxc3 {[%emt 0:01:40]} Qc7 {[%emt 0:01:07]} 9. Rb1 {[%emt 0:08:14]} b6 {[%emt 0:01:33]} 10. d4 {[%emt 0:04:07]} Nc6 {[%emt 0:08:19]} 11. Bd3 {[%emt 0:00:39]} Be7 {[%emt 0:07:32]} 12. O-O {[%emt 0:00:24]} O-O {[%emt 0:02:59]} 13. e4 {[%emt 0:05:05]} e5 {[%emt 0:04:19][%cal Re5d4]} 14. Qc2 {[%emt 0:16:19]} Bg4 {[%emt 0:05:45]} (14... exd4 $15 15. cxd4 Rac8) 15. Nxe5 {[%emt 0:02:24]} (15. d5 $5 {[%cal Rd5c6]} Bxf3 16. gxf3 $14) 15... Nxe5 {[%emt 0:00:07]} 16. dxe5 {[%emt 0:00:02]} c4 {[%emt 0:02:37]} 17. Be2 {[%emt 0:00:03]} Bxe2 {[%emt 0:00:05]} 18. Qxe2 {[%emt 0:00:03]} Qxe5 {[%emt 0:00:05]} 19. Qxc4 {[%emt 0:01:03]} Rfc8 {[%emt 0:02:54]} 20. Qe2 {[%emt 0:05:14]} Qxc3 {[%emt 0:03:23]} 21. Bb2 {[%emt 0:00:21]} (21. Re1 $11) 21... Qc4 $17 {[%emt 0:01:04]} 22. Qg4 {[%emt 0:01:01][%csl Gb2][%cal Rg4g7] [#]} Bf8 {[%emt 0:02:09]} 23. Rbc1 {[%emt 0:00:30]} Qe6 {[%emt 0:03:25]} ({Better is} 23... Qa6 $17 {Hoping for ...Rxc1.} 24. Rxc8 Rxc8) 24. Qxe6 $11 {[%emt 0:01:38] The position is equal.} fxe6 {[%emt 0:00:08]} 25. g3 {[%emt 0:00:45]} Rxc1 {[%emt 0:04:03]} 26. Rxc1 {[%emt 0:00:05][%mdl 4096] Endgame KRB-KRB} Rd8 {[%emt 0:00:03]} 27. Rc2 {[%emt 0:04:04] Inhibits Rd2.} b5 {[%emt 0:13:27]} 28. Kf1 {[%emt 0:01:14]} Rd7 {[%emt 0:01:46]} 29. Ke2 {[%emt 0:00:43]} Kf7 {[%emt 0:00:21]} 30. Ke3 {[%emt 0:04:17]} a5 {[%emt 0:02:31]} 31. f4 {[%emt 0:04:16]} a4 {[%emt 0:03:26]} 32. g4 {[%emt 0:04:17]} g6 {[%emt 0:02:40]} 33. Rc8 {[%emt 0:04:52]} b4 {[%emt 0:04:14]} 34. Bd4 {[%emt 0:05:41]} Rb7 {[%emt 0:02:06]} 35. Kd2 {[%emt 0:02:50]} Rd7 {[%emt 0:04:43]} 36. Ke3 {[%emt 0:00:19]} Rb7 {[%emt 0:00:16]} 37. Kd3 {[%emt 0:01:28]} b3 {[%emt 0:02:14]} 38. axb3 {[%emt 0:00:02]} Rxb3+ {[%emt 0:00:14]} 39. Kc4 {[%emt 0:00:15]} Rb4+ {[%emt 0:01:21]} 40. Kc3 {[%emt 0:00:35][%cal Oc8f8] [#] And now Rxf8+! would win.} Rb7 {[%emt 0:03:08]} 41. Ra8 {[%emt 0:31:34]} a3 {[%emt 0:31:11]} 42. h3 {[%emt 0:00:00]} h5 {[%emt 0:00:00]} 43. Kc2 {[%emt 0:00:00]} Bd6 {[%emt 0:00:00]} 44. f5 {[%emt 0:00:00]} exf5 {[%emt 0:00:00]} 45. gxf5 {[%emt 0:00:00]} gxf5 {[%emt 0:00:00]} 46. exf5 {[%emt 0:00:00]} Bf8 {[%emt 0:00:00]} 47. Kd3 {[%emt 0:00:00]} Bg7 {[%emt 0:00:00]} 48. Bc5 {[%emt 0:00:00]} Rb3+ {[%emt 0:00:00]} 49. Ke4 {[%emt 0:00:00]} Rxh3 {[%emt 0:00:00]} 50. Ra7+ {[%emt 0:00:00]} Kg8 {[%emt 0:00:00]} 51. Be7 {[%emt 0:00:46]} Bh6 {[%emt 0:00:00]} 52. f6 {[%emt 0:01:54] Bc5 is the strong threat.} Kf7 {[%emt 0:00:00]} 53. Rxa3 {[%emt 0:05:37]} Rxa3 {[%emt 0:00:00]} 54. Bxa3 {[%emt 0:00:04]} Bg5 {[%emt 0:00:00]} 55. Bb2 {[%emt 0:00:05]} Bxf6 {[%emt 0:00:00]} 56. Bxf6 {[%emt 0:00:04]} h4 {[%emt 0:00:00]} 57. Bxh4 {[%emt 0:00:06] Weighted Error Value: White=0.06 (flawless) /Black=0.05 (flawless)} 1/2-1/2